Cogmind - Beta 16 @@@ ROGUE MODE // 2026.01.08 @ 23:21:08 Player: Stibat Result: Destroyed by L-31 Rogue with Katana Performance ------------- Evolutions (2) 1000 Regions Visited (5) 1000 Robots Destroyed (78) 390 Value Destroyed (2168) 2168 Prototype IDs (3) 60 Alien Tech Used (0) 0 Bonus (257) 257 TOTAL SCORE: 4875 Bonus ------- Follower Combat Kills 57 Entered Garrisons 200 Cogmind --------- Core Integrity 0/550 Matter 297/300 Energy 100/100 System Corruption 0% Temperature Cool (0) Movement Core (50) Location -8/Garrison Parts ------- > --- POWER (1) -------- (None) > --- PROPULSION (4) --- (None) > --- UTILITY (4) ------ (None) > --- WEAPON (2) ------- (None) > --- INVENTORY (5) ---- Heat Sink Visual Processing Unit Particle Charger Particle Gun Peak State ------------ > --- POWER ------------ Light Nuclear Core > --- PROPULSION ------- Light Treads Improved Treads Aluminum Leg > --- UTILITY ---------- Improved Heat Sink Machine Analyzer Signal Interpreter Improved Targeting Computer > --- WEAPON ----------- Precision Beam Rifle Ion Cannon > --- INVENTORY -------- Heat Sink Visual Processing Unit Mining Laser [Rating: 23] Favorites ----------- Power Ion Engine Engine Ion Engine Power Core Light Nuclear Core Propulsion Improved Treads Treads Improved Treads Leg Aluminum Leg Utility Signal Interpreter Device Heat Sink Storage Large Storage Unit Processor Signal Interpreter Weapon Ion Cannon Energy Gun Beam Rifle Energy Cannon Ion Cannon Ballistic Gun Assault Rifle Launcher Mini Grenade Launcher Special Weapon Mining Laser Slashing Weapon Katana Build | -11 -10 -9 -9 -8 -8 ------- Run | Yrd Mat Mat Min Mat Gar Slots Evolved 4 | . . 2 . 2 . Power . | . . . . . . Propulsion 2 | . . . . 2 . Utility 2 | . . 2 . . . Weapon . | . . . . . . Parts Attached 49 | 6 13 14 8 5 3 Power 8 | 1 2 3 . 1 1 Engine 6 | 1 2 3 . . . Core 2 | . . . . 1 1 Reactor . | . . . . . . Propulsion 14 | 2 4 3 1 2 2 Treads 9 | . 4 3 1 1 . Leg 5 | 2 . . . 1 2 Wheel . | . . . . . . Hover . | . . . . . . Flight . | . . . . . . Utility 11 | 1 4 3 3 . . Device 6 | . 3 1 2 . . Storage 2 | 1 1 . . . . Processor 3 | . . 2 1 . . Hackware . | . . . . . . Protection . | . . . . . . Artifact . | . . . . . . Weapon 16 | 2 3 5 4 2 . Energy Gun 5 | . 2 2 . 1 . Energy Cannon 4 | . . 2 2 . . Ballistic Gun 3 | 2 1 . . . . Ballistic Cannon . | . . . . . . Launcher 2 | . . 1 1 . . Special Weapon 1 | . . . 1 . . Impact Weapon . | . . . . . . Slashing Weapon 1 | . . . . 1 . Piercing Weapon . | . . . . . . Special Melee Weapon . | . . . . . . Unidentified Prototypes 1 | . . . . 1 . Parts Lost 17 | . . 4 5 4 4 Power 2 | . . . 1 1 . Propulsion 7 | . . 2 2 1 2 Utility 2 | . . 1 . . 1 Weapon 6 | . . 1 2 2 1 Highest Loss Streak 3 | . . 1 3 3 3 To Critical Strikes . | . . . . . . Average Backups 6 | 2 8 8 4 2 3 Power . | . 1 1 . . . Propulsion 1 | 1 2 2 . . . Utility 2 | . 2 2 1 2 3 Weapon 1 | . 2 2 1 . . Tool/Special . | . . . . . . Unused Backups 10 | . 4 3 . . 3 Power 2 | . 1 1 . . . Propulsion 1 | . . 1 . . . Utility 2 | . . . . . 2 Weapon 5 | . 3 1 . . 1 Tool/Special . | . . . . . . Average Slot Usage (%) 96 | . 99 99 98 78 63 Engine 11 | . 14 10 10 5 . Treads 21 | . 25 21 21 12 7 Leg 1 | . 2 . . 3 7 Device 12 | . 13 15 11 9 8 Storage 7 | . 14 11 2 . . Processor 17 | . . 16 30 27 21 Energy Gun 8 | . 18 10 . 1 8 Energy Cannon 7 | . . 11 13 8 . Ballistic Gun 3 | . 9 . . . . Launcher 2 | . . . 7 4 . Peak Build Rating 23 | 6 12 18 19 23 19 Average Rating 14 | 5 10 15 18 18 16 On Entrance 12 | . 6 12 18 17 19 Avg Prop Armor Cover (%) 6 | . 10 . . 6 . Naked Turns 1 | . . . . . 1 Heaviest Build 38 | 13 32 38 38 14 10 Greatest Support 46 | 20 46 46 46 43 43 Greatest Overweight (x) 4 | 4 1 1 . . 1 Average Overweight (x) . | . . . . . . Largest Inventory Capacity 15 | 8 15 15 15 5 5 Average Capacity 10 | 7 14 15 7 5 5 Most Carried 12 | 4 11 12 8 4 4 Average Carried 6 | 2 8 8 4 2 3 Final Capacity 15 | 8 15 15 5 5 5 Final Carried 10 | 4 10 8 3 3 4 Class Distribution -------------------- 94% | Mutant 5% | Scavenger-Mutant Dominant Class ---------------- Mutant | -10/Materials Mutant | -9/Materials Mutant | -9/Mines Mutant | -8/Materials Mutant | -8/Garrison Resources | -11 -10 -9 -9 -8 -8 ----------- Run | Yrd Mat Mat Min Mat Gar Matter Collected 1007 | 231 249 186 205 116 20 Remotely . | . . . . . . Salvage Created 2477 | . 507 951 303 536 180 Parts 156 | . 33 71 22 20 10 Haulers Intercepted . | . . . . . . Recyclers Shooed 2 | . 1 . . 1 . Parts Field Recycled . | . . . . . . Retrieved Matter . | . . . . . . Parts Self-Destructed . | . . . . . . Prevented . | . . . . . . Parts Restored . | . . . . . . Kills | -11 -10 -9 -9 -8 -8 ------- Run | Yrd Mat Mat Min Mat Gar Combat Hostiles Destroyed 60 | . 12 22 10 12 4 Melee 4 | . 1 . . . 3 Guns 22 | . 11 10 . . 1 Cannons 24 | . . 10 6 8 . AOE 7 | . . 1 4 2 . Classes Destroyed 12 | . 4 4 2 1 1 Worker 2 | . . 1 . 1 . Builder 6 | . . 3 1 2 . Tunneler 2 | . . . 2 . . Recycler 1 | . 1 . . . . Operator 1 | . . 1 . . . Watcher 7 | . 3 3 . 1 . Swarmer 14 | . 5 7 2 . . Cutter 1 | . . . . . 1 Grunt 33 | . 7 8 5 10 3 Brawler 1 | . . . . 1 . Sentry 9 | . . 7 1 1 . Assembled 1 | . . . 1 . . Best Kill Streak 4 | . 4 4 4 4 3 Combat Bots Only 4 | . 4 4 2 4 3 Max Kills in Single Turn 3 | . 1 2 2 3 1 Gunslinging . | . . . . . . Exploded 1 | . . 1 1 1 . Melee 1 | . 1 . . . 1 Uniques/NPCs Destroyed 1 | . . . 1 . . YI-UF0 (-9/Mines) Combat | -11 -10 -9 -9 -8 -8 -------- Run | Yrd Mat Mat Min Mat Gar Hostile Shots Fired 322 | . 76 109 37 55 45 Missed 78 | . 18 30 9 12 9 Hits 244 | . 58 79 28 43 36 Melee 19 | . . . . . 19 Projectile 225 | . 58 79 28 43 17 AOE 15 | . . . 12 . 3 Critical Strikes 18 | . 1 3 . 3 11 Damage Taken 3570 | . 603 937 633 668 729 Core 913 | . 91 151 98 171 402 Absorbed by Shields 38 | . . . . . 38 Core Remaining (%) 66 | 100 63 . 37 . . Volleys Fired 176 | . 37 59 40 35 5 Largest 2 | . 2 2 2 2 1 Hottest 160 | . 112 120 160 160 61 Shots Fired 302 | . 74 112 52 59 5 Gun 147 | . 74 52 . 16 5 Cannon 109 | . . 58 17 34 . Launcher 16 | . . 2 9 5 . Special 30 | . . . 26 4 . Kinetic 38 | . 38 . . . . Thermal 248 | . 36 110 43 54 5 Explosive 16 | . . 2 9 5 . Electromagnetic . | . . . . . . Robot Hit Streak 26 | . 8 12 5 26 16 Robot Miss Streak 3 | . 3 3 2 1 1 Penetration Max . | . . . . . . Secondary Targets 1 | . 1 . . . . Max Gunslinging Chain 1 | . 1 . . . . Shots Hit Robots 191 | . 49 68 15 50 9 Core Hits 111 | . 25 33 24 24 5 Critical Kills 1 | . . 1 . . . Critical Parts Destroyed . | . . . . . . Critical Strikes 10 | . 4 3 . 2 1 Burn 8 | . 4 2 . 2 . Meltdown 1 | . . 1 . . . Sever 1 | . . . . . 1 Melee Attacks 11 | . . . . . 11 Impact . | . . . . . . Slashing 11 | . . . . . 11 Piercing . | . . . . . . Sneak Attacks . | . . . . . . Combat Hostiles . | . . . . . . Follow-up Attacks . | . . . . . . Damage Inflicted 4667 | . 674 1504 717 1535 237 Guns 1448 | . 647 477 . 256 68 Cannons 1911 | . . 876 302 733 . Explosions 930 | . . 107 355 468 . Melee 163 | . . . . . 163 Ramming 119 | . 27 44 36 6 6 Kinetic 256 | . 256 . . . . Thermal 3199 | . 391 1353 326 1061 68 Explosive 930 | . . 107 355 468 . Electromagnetic . | . . . . . . Impact . | . . . . . . Slashing 163 | . . . . . 163 Piercing . | . . . . . . Highest Corruption . | . . . . . . Average Corruption . | . . . . . . Corruption Purged . | . . . . . . Corruption Blocked . | . . . . . . Overload Shots . | . . . . . . Overflow Damage 33 | . . 13 . 20 . Projectiles 26 | . . 13 . 13 . Explosions 7 | . . . . 7 . Melee . | . . . . . . Knockbacks . | . . . . . . Impact . | . . . . . . Kinetic . | . . . . . . Secondary . | . . . . . . Self-Inflicted Damage 22 | . . . 19 . 3 Shots 1 | . . . 1 . . Rammed 22 | . 6 3 8 4 1 Targets Rammed 28 | . 8 6 9 4 1 Kicked . | . . . . . . Crushed 6 | . 2 3 1 . . Highest Temperature 195 | . 195 132 66 176 12 Average Temperature 58 | . 83 46 21 83 12 Received Heat Transfer 1113 | . 210 321 105 297 180 Siege Activations . | . . . . . . Martial Activations . | . . . . . . Shielding Activations . | . . . . . . Robots Disrupted . | . . . . . . Combat Hostiles . | . . . . . . Robots Corrupted . | . . . . . . Combat Hostiles . | . . . . . . Parts Fried . | . . . . . . Impact Corruptions . | . . . . . . Robots Melted 3 | . . 1 . 2 . Combat Hostiles 3 | . . 1 . 2 . Parts Melted 18 | . 6 7 1 4 . Heat Transferred 6786 | . 1295 2775 531 2037 148 Parts Sabotaged . | . . . . . . Parts Stolen . | . . . . . . Parts Stripped . | . . . . . . Power Chain Reactions . | . . . . . . Alert | -11 -10 -9 -9 -8 -8 ------- Run | Yrd Mat Mat Min Mat Gar Maximum Alert Level 1 | . . 1 . 1 . Low Security (%) 94 | 100 100 72 100 96 100 Level 1 5 | . . 27 . 3 . Level 2 . | . . . . . . Level 3 . | . . . . . . Level 4 . | . . . . . . Level 5 . | . . . . . . High Security . | . . . . . . Max Security . | . . . . . . Peak Influence 340 | . 90 340 122 217 176 Initial 122 | . . . 122 33 116 Average 56 | . 20 132 26 104 136 Influence Increases 1903 | . 356 707 366 384 90 Destroy 0b10 Robot/C 1220 | . 240 440 220 240 80 Destroy 0b10 Robot/NC 95 | . 20 40 15 20 . Destroy Leader 264 | . 46 126 20 62 10 Allied During Kill 11 | . . . 11 . . Successful Hack 4 | . 4 . . . . Disable Machine 75 | . 15 . 45 15 . Destroy Structure 129 | . 1 26 55 47 . Lose Combat Pursuer 105 | . 30 75 . . . Influence Decreases 1737 | . 356 392 596 290 103 Entered New Map 308 | . . . 193 52 63 Time Decay 1219 | . 346 362 313 198 . Lost Part 160 | . . 30 50 40 40 Lost Ally 40 | . . . 40 . . Purge Threat 10 | . 10 . . . . Squads Dispatched 8 | . 1 2 . 5 . Investigation 3 | . 1 1 . 1 . Extermination . | . . . . . . Reinforcement 3 | . . 1 . 2 . Assault . | . . . . . . Garrison 2 | . . . . 2 . Intercept . | . . . . . . Searches Triggered . | . . . . . . Construction Impeded 1 | . . . . 1 . Haulers Reinforced . | . . . . . . Active Scanning Responses . | . . . . . . Cargo Convoy Interrupts . | . . . . . . Stealth | -11 -10 -9 -9 -8 -8 --------- Run | Yrd Mat Mat Min Mat Gar Distress Signals 10 | . 1 8 . 1 . Communications Jammed . | . . . . . . Distress Signals . | . . . . . . Times Spotted 97 | . 21 37 14 18 7 Peak Tracking Total 8 | . 4 8 3 6 4 Tactical Retreats 7 | . 1 5 1 . . Traps | -11 -10 -9 -9 -8 -8 ------- Run | Yrd Mat Mat Min Mat Gar Traps Triggered 2 | . 1 . . . 1 Indirectly . | . . . . . . Trap Hack Attempts . | . . . . . . Triggered . | . . . . . . Disarmed . | . . . . . . Reprogrammed . | . . . . . . Reused . | . . . . . . Traps Extracted . | . . . . . . Installed . | . . . . . . Triggered . | . . . . . . Machines | -11 -10 -9 -9 -8 -8 ---------- Run | Yrd Mat Mat Min Mat Gar Machines Disabled 6 | . 1 . 4 1 . Max in Single Turn 3 | . 1 . 3 1 . Machines Repaired . | . . . . . . Machines Dismantled . | . . . . . . Machines Sabotaged . | . . . . . . Overloaded Fab Kills . | . . . . . . Hacking | -11 -10 -9 -9 -8 -8 --------- Run | Yrd Mat Mat Min Mat Gar Machines Accessed 12 | . 6 3 . 3 . Terminals 7 | . 5 1 . 1 . Fabricators . | . . . . . . Repair Stations . | . . . . . . Recycling Units 1 | . 1 . . . . Scanalyzers 3 | . . 2 . 1 . Garrison Access 1 | . . . . 1 . Total Hacks 35 | . 18 7 . 10 . Successful 21 | . 10 5 . 6 . Failed 14 | . 8 2 . 4 . Catastrophic 2 | . 1 1 . . . Database Lockouts . | . . . . . . Manual . | . . . . . . Terminals 21 | . 15 2 . 4 . Fabricators . | . . . . . . Repair Stations . | . . . . . . Recycling Units 3 | . 3 . . . . Scanalyzers 10 | . . 5 . 5 . Garrison Access 1 | . . . . 1 . Terminal Hacks 10 | . 8 1 . 1 . Robot Analysis 1 | . 1 . . . . Prototype ID Bank 1 | . 1 . . . . Branch Access Points 1 | . . 1 . . . Emergency Access Points 1 | . 1 . . . . Unreport Threat 1 | . 1 . . . . Locate Traps 2 | . 1 . . 1 . Dispatch Records 1 | . 1 . . . . Investigation Status 1 | . 1 . . . . Zone Layout 1 | . 1 . . . . Fabricator Hacks . | . . . . . . Repair Station Hacks . | . . . . . . Recycling Unit Hacks 2 | . 2 . . . . Report Inventory 1 | . 1 . . . . Retrieve Components 1 | . 1 . . . . Scanalyzer 8 | . . 4 . 4 . Insert Component 3 | . . 1 . 2 . Analyze 3 | . . 1 . 2 . Retrieve Study 2 | . . 2 . . . Garrison Access Hacks 1 | . . . . 1 . Unlock Access 1 | . . . . 1 . Unauthorized Hacks . | . . . . . . Terminals . | . . . . . . Fabricators . | . . . . . . Repair Stations . | . . . . . . Recycling Units . | . . . . . . Scanalyzers . | . . . . . . Garrison Access . | . . . . . . Data Cores Recovered 1 | . . 1 . . . Used . | . . . . . . Hacking Detections 9 | . 5 3 . 1 . Full Trace Events 4 | . 2 1 . 1 . Feedback Events . | . . . . . . Feedback Blocked . | . . . . . . Robot Schematics Acquired . | . . . . . . Robots Built . | . . . . . . Authchips . | . . . . . . Time . | . . . . . . Total Robot Build Rating . | . . . . . . Part Schematics Acquired 3 | . . 1 . 2 . Parts Built . | . . . . . . Authchips . | . . . . . . Time . | . . . . . . Total Part Build Rating . | . . . . . . Part Studies Acquired 1 | . . 1 . . . Parts Repaired . | . . . . . . Time . | . . . . . . Parts Recycled . | . . . . . . Recycled Matter . | . . . . . . Retrieved Matter . | . . . . . . Retrieved Components 6 | . 6 . . . . Parts Scanalyzed 3 | . . 1 . 2 . Part Schematics Acquired 3 | . . 1 . 2 . Parts Damaged . | . . . . . . Bothacking | -11 -10 -9 -9 -8 -8 ------------ Run | Yrd Mat Mat Min Mat Gar Used RIF Installer . | . . . . . . Robots Hacked . | . . . . . . Non-combat . | . . . . . . Combat . | . . . . . . Robot Hacks Applied . | . . . . . . Relay Couplers Released . | . . . . . . Fabnet Peak Effective % . | . . . . . . Robots Rewired . | . . . . . . Allies Hacked . | . . . . . . Hacks Repelled . | . . . . . . Allies | -11 -10 -9 -9 -8 -8 -------- Run | Yrd Mat Mat Min Mat Gar Total Allies 4 | . . . 4 . . Largest Group 3 | . . . 3 . . Highest-Rated Group 40 | . . . 40 . . Highest-Rated Ally 31 | . . . 31 . . Total Orders . | . . . . . . Ally Attacks 22 | . . . 22 . . Total Damage 221 | . . . 221 . . Kills 3 | . . . 3 . . Allies Corrupted . | . . . . . . Allies Melted . | . . . . . . Intel | -11 -10 -9 -9 -8 -8 ------- Run | Yrd Mat Mat Min Mat Gar Active Infowar (turns) 3805 | . 559 958 1698 405 185 Terrain 957 | . 559 398 . . . Machine Analysis 2848 | . . 560 1698 405 185 Robot Analysis Total 1 | . 1 . . . . Derelict Logs Recovered 2 | . . . 2 . . Drone Launches . | . . . . . . Drone Recoveries . | . . . . . . Exploration | -11 -10 -9 -9 -8 -8 ------------- Run | Yrd Mat Mat Min Mat Gar Turns Passed 4997 | 99 1583 1025 1698 405 187 Spaces Moved 2517 | 70 853 385 934 172 103 Core 20 | 11 . . . . 9 Treads 2326 | . 797 385 934 172 38 Legs 171 | 59 56 . . . 56 Wheels . | . . . . . . Hover . | . . . . . . Flight . | . . . . . . Fastest Speed 50 | 50 120 160 160 160 50 Average Speed 157 | 124 157 161 160 160 130 Slowest Speed 250 | 250 240 240 160 160 160 Overloaded Moves . | . . . . . . Propulsion Burnouts . | . . . . . . Robots Hopped . | . . . . . . Potential Cave-ins . | . . . . . . Cave-ins Triggered . | . . . . . . Exploration Rate (%) 45 | 5 97 37 98 17 20 Regions Visited 5 Branch Regions 1 Pre-discovered Areas 1 | . . . 1 . . Known Exits Taken 3 | . . 1 1 1 . Unknown Exits Taken 2 | 1 1 . . . . Scrap Searched 1 | . . . 1 . . Spaces Dug 14 | . . . 14 . . Terrain Destroyed 159 | . . 22 81 56 . Melee . | . . . . . . Projectile 19 | . . 5 14 . . AOE 140 | . . 17 67 56 . Terrain Rammed . | . . . . . . Walls Destroyed . | . . . . . . Machines Disabled . | . . . . . . Actions | -11 -10 -9 -9 -8 -8 --------- Run | Yrd Mat Mat Min Mat Gar Total 3163 | 79 1016 676 1027 232 133 Wait 295 | . 78 186 20 11 . Move 2512 | 69 852 384 933 171 103 Hop . | . . . . . . Pick Up 26 | 4 10 6 2 3 1 Fast Attach 24 | 6 5 7 1 2 3 Attach 10 | . . 3 5 2 . Detach 9 | . 4 4 1 . . Swap 29 | . 9 8 10 2 . Drop 34 | . 13 13 6 2 . Fire 176 | . 37 59 40 35 5 Melee 11 | . . . . . 11 Ram 1 | . . . . . 1 Kick . | . . . . . . Crush 27 | . 8 6 9 4 . Escape Stasis 9 | . . . . . 9 Rewire . | . . . . . . Trap . | . . . . . . Miscellaneous . | . . . . . . Route ------- -11/Scrapyard -10/Materials (discovered 4 exits: *Mat x3 / [*Min]) -9/Materials (discovered 3 exits: *Mat / *Min x2) -9/Mines (discovered 2 exits: *Mat x2) -8/Materials (discovered 2 exits: Sto / Gar) -8/Garrison History --------- Turn | Location | Event 13 | -11/Scrapyard | Discovered new exit (range 16) 100 | -11/Scrapyard | Entered Materials 191 | -10/Materials | Discovered new exit (range 13) 316 | -10/Materials | Build established: Mutant 363 | -10/Materials | Discovered new exit (range 3) 611 | -10/Materials | Discovered new exit (range 13) 1139 | -10/Materials | Discovered new exit (range 14) 1683 | -10/Materials | Entered another Materials area 1683 | -9/Materials | Evolved 2 slots: Utility x2 2134 | -9/Materials | Discovered new exit (range 4) 2252 | -9/Materials | Identified exit to Mines 2708 | -9/Materials | Entered Mines 2712 | -9/Mines | Assisted by bots powering up and referring to "LRC-V3" 2989 | -9/Mines | Learned location of 1 exit from Materials 3238 | -9/Mines | Discovered new exit (range 9) 3268 | -9/Mines | Identified exit to Materials 3314 | -9/Mines | Core integrity fell below 50% 3323 | -9/Mines | Destroyed YI-UF0 3352 | -9/Mines | Lost 3 parts (1p1n1w) 3495 | -9/Mines | Learned location of Zion (-6) 3503 | -9/Mines | Discovered exit to Materials (range 6) 3651 | -9/Mines | Received a Mining Laser from a helpful Derelict 4127 | -9/Mines | Excavation squad dispatched 4127 | -9/Mines | A large section of the Mines collapsed 4406 | -9/Mines | Entered Materials 4406 | -8/Materials | Evolved 2 slots: Propulsion x2 4407 | -8/Materials | Identified exit to Storage 4589 | -8/Materials | Garrison activated, responded to threat 4756 | -8/Materials | Garrison activated, responded to threat 4807 | -8/Materials | Identified exit to Garrison 4811 | -8/Materials | Entered Garrison 4833 | -8/Garrison | Lost 3 parts (1p1n1w) 4869 | -8/Garrison | Triggered checkpoint 4913 | -8/Garrison | Lost 3 parts (2n1u) 4969 | -8/Garrison | Core integrity fell below 50% 4986 | -8/Garrison | Core integrity fell below 20% 4998 | -8/Garrison | Destroyed by L-31 Rogue with Katana Last Messages --------------- C-17 Slicer destroyed. Lgt. Nuclear Core severed. Prc. Beam Rifle destroyed. Imp. Heat Sink severed. Katana severed. Slammed into C-17 Slicer. Triggered Stasis Trap. A bubble of rippling energy engulfs the area. Field strength at 94. Field strength at 88. Field strength at 76. Field strength at 70. Field strength at 64. Field strength at 58. Field strength at 46. Field strength at 40. Machine Analyzer severed. Field strength at 21. Signal Interpreter severed. Field strength at 11. Map ----- +----------------------------------------------------+ | ??# #???????????????????????????????????????????? | | ### ^#################???????????????????????????? | | #???????????????????????????? | | #???????????????????????????? | | #???????????????????????????? | | ################## #???????????????????????????? | | ?????????????????# #???????????????????????????? | | ?????????????????# #???????????????????????????? | | ?????????????????# #???????????????????????????? | | ?????????????????# #???????????????????????????? | | ?????????????????# #???????????????????????????? | | ?????????????????# #???????????????????????????? | | ?????????????????# #???????????????????????????? | | ?????????????????# #??#????????????????????????? | | ?????????????????# #?? ????????????????????????? | | ?????????????????# #?? ????????????????????????? | | ?????????????????# #?# #???????????????????????? | | ?????????????????# #?# #???????????????????????? | | ?????????????????# #?# #???????????????????????? | | ?????????????????# #?# #???????????????????????? | | ?????????????????# #?# #???????????????????????? | | ?????????????????# #?# #???????????????????????? | | ?????????????????#/ ### #########""""##?????????? | | ?????????????????#*! ???????? | | ?????????????????#=%= c^ ???????? | | ?????????????????#==! c@ ???????? | | ?????????????????#######l#### ## ## ????????? | | ???????????????????????# #??? #???? #??????????? | | ???????????????????????# ???? ???????????????? | | ???????????????????????####???? ?????????????? | | ???????????????????????????????? ????????????? | | ????????????????????????????????? ???????????? | | ?????????????????????????????????? #??????????? | | ?????????????????????????????????? ???????????? | | ??????????????????????????????????? ???????????? | | ?????????????????????????????????????????????????? | | ?????????????????????????????????????????????????? | | ?????????????????????????????????????????????????? | | ?????????????????????????????????????????????????? | | ?????????????????????????????????????????????????? | | ?????????????????????????????????????????????????? | | ?????????????????????????????????????????????????? | | ?????????????????????????????????????????????????? | | ?????????????????????????????????????????????????? | | ?????????????????????????????????????????????????? | | ?????????????????????????????????????????????????? | | ?????????????????????????????????????????????????? | | ?????????????????????????????????????????????????? | | ?????????????????????????????????????????????????? | | ?????????????????????????????????????????????????? | +----------------------------------------------------+ Best States ------------- Heat Dissipation 48 Energy Generation 14 Energy Capacity 250 Matter Stores 300 Matter Capacity 300 Sight Range 16 Terrain Scan Range 14 Terrain Scan Density 10 Evasion (%) 55 Targeting Accuracy 6 Recoil Reduction 2 Item Schematics ----------------- Imp. Treads | -9/Materials | Scanalyzed Heat Sink | -8/Materials | Scanalyzed Visual Processing Unit | -8/Materials | Scanalyzed Robot Schematics ------------------ None Fabricated ------------ Nothing Repaired ---------- Nothing Studied --------- Beam Rifle | -9/Materials | Hacked Alien Tech Used ----------------- None Achievements -------------- None Challenges ------------ None Game ------ Seed EtherialVisualKinecellerator Manual? 0 Play Time 00:47:44 Cumulative 7.9 hours Start 2026.01.07 @ 13:10:42 End 2026.01.08 @ 23:21:08 Sessions 3 Manual Loads 0 Difficulty Rogue Special Mode None Game No. 8 Rogue 8 Adventurer 0 Explorer 0 Win Type - Total 0 Types 0/0/0/0/0/0/0/0/0/0 Lore% 9 Gallery% 14 Achievement% 12 Wizard Run 0 Options --------- Layout 1 ASCII 0 Keyboard 1 Movement Numpad Keybinds 0 Fullscreen 1 Font 24/Proggy Map View 50x35 Zoom Use 0% Tactical HUD 0 Map Filters NONE Filters NONE Steam 1 RUN: 551a63d0-96fc-4872-9dd9-88aa8a337367